bitfinex-derivatives/quotes_SOLF0:USTF0_20241015
["timestamp","ask_amount","ask_price","bid_price","bid_amount"]
[1728951376279,20.29502,157.25,157.19,3.1811]
[1728951376571,3.1809,157.21,157.19,3.1811]
[1728951377969,3.1808,157.22,157.19,3.1811]
[1728951379262,3.1806,157.23,157.2,3.1809]
[1728951379872,3.1807,157.22,157.2,3.1809]
[1728951380379,0.12502,157.25,157.2,3.1809]
[1728951381470,3.1806,157.23,157.2,3.1809]
[1728951382578,3.1807,157.22,157.2,3.1809]
[1728951385278,0.12502,157.25,157.18,7.6354]
[1728951385479,3.1805,157.23,157.21,3.1809]
[1728951385677,3.1805,157.23,157.18,7.6354]
[1728951385880,3.1805,157.23,157.2,9.78]
[1728951387382,3.1805,157.23,157.2,12.961]
[1728951387586,3.1808,157.22,157.2,3.181]
[1728951388580,12.9603,157.24,157.22,3.1805]
[1728951388785,12.9603,157.24,157.19,9.78]
[1728951388786,9.78,157.24,157.19,9.78]
[1728951389282,3.1806,157.23,157.2,3.181]
[1728951389884,3.1806,157.23,157.21,3.1809]
[1728951390277,3.1806,157.23,157.19,9.78]
[1728951391073,3.1806,157.23,157.2,3.1809]
[1728951392982,3.1807,157.22,157.2,3.1809]
[1728951394982,0.12502,157.25,157.18,11.138]
[1728951394983,9.78,157.23,157.18,11.138]
[1728951395179,3.1814,157.19,157.17,3.1816]
[1728951395390,9.78,157.21,157.17,3.1816]
[1728951395690,9.78,157.21,157.16,9.78]
[1728951396084,3.1812,157.2,157.18,3.1814]
[1728951398988,13.01894937,157.23,157.17,9.78]
[1728951399194,13.01894937,157.23,157.15,1.2596]
[1728951399195,3.1809,157.21,157.18,9.78]
[1728951400193,3.1809,157.21,157.18,12.9614]
[1728951400692,3.1806,157.23,157.2,3.181]
[1728951400890,3.1806,157.23,157.2,9.78]
[1728951401295,3.1806,157.23,157.2,12.961]
[1728951402984,3.1808,157.22,157.19,3.1812]
[1728951403185,9.78,157.21,157.16,1.2859]
[1728951403392,12.9144613,157.23,157.18,9.78]
[1728951403587,3.181,157.21,157.18,12.9614]
[1728951408799,3.1808,157.22,157.2,3.181]
[1728951409595,0.12502,157.25,157.21,9.78]
[1728951409798,0.12502,157.25,157.22,9.78]
[1728951410694,0.12502,157.25,157.23,3.1803]
[1728951414007,0.12502,157.25,157.24,3.1803]
[1728951418199,0.12502,157.25,157.24,12.9603]
[1728951418503,14.78502,157.31,157.27,3.1795]
[1728951418698,14.78502,157.31,157.26,9.78]
[1728951418903,9.78,157.3,157.26,3.1798]
[1728951420003,3.1793,157.29,157.26,3.1798]
[1728951420401,9.78,157.3,157.26,3.1798]
[1728951420908,3.1793,157.29,157.26,3.1798]
[1728951421501,3.1792,157.3,157.27,3.1795]
[1728951422104,3.1793,157.29,157.27,3.1795]
[1728951422305,12.9593,157.29,157.24,9.78]
[1728951423102,12.9593,157.29,157.26,3.1797]
[1728951423305,12.9593,157.29,157.24,9.78]
[1728951424311,12.9593,157.29,157.27,3.1797]
[1728951424513,3.1793,157.29,157.27,3.1797]
[1728951425113,4.98502,157.31,157.25,9.78]
[1728951425300,4.98502,157.31,157.23,2.5811]
[1728951425301,4.98502,157.31,157.27,9.78]
[1728951425704,4.98502,157.31,157.29,3.1791]
[1728951425908,0.12502,157.31,157.29,9.78]
[1728951427107,0.12502,157.31,157.3,3.1791]
[1728951428509,3.1782,157.35,157.33,3.1785]
[1728951428703,0.12502,157.37,157.33,12.9585]
[1728951429103,3.178,157.36,157.33,12.9585]
[1728951429507,3.1781,157.35,157.33,12.9585]
[1728951431209,0.12502,157.37,157.33,9.78]
[1728951431402,0.12502,157.37,157.34,9.78]
[1728951431807,0.12502,157.37,157.35,3.1779]
[1728951432007,0.12502,157.37,157.32,15.27]
[1728951432214,0.12502,157.37,157.33,3.1784]
[1728951432512,0.12502,157.37,157.32,15.27]
[1728951432914,0.12502,157.37,157.36,3.1779]
[1728951436808,70.5089,157.48,157.35,15.27]
[1728951437012,3.1771,157.4,157.36,2.5996]
[1728951437207,4.86,157.44,157.36,2.5996]
[1728951437615,3.177,157.41,157.36,2.5996]
[1728951439306,3.177,157.41,157.38,3.1773]
[1728951439516,16.6637,157.48,157.38,4.86]
[1728951439713,6.2476,157.5,157.39,15.27]
[1728951439714,1.3876,157.5,157.39,15.27]
[1728951439908,3.1755,157.48,157.45,3.176]
[1728951440411,8.09825484,157.51,157.42,15.27]
[1728951440616,3.1762,157.45,157.39,20.13]
[1728951440817,20.13,157.47,157.38,1.2758]
[1728951441120,15.27,157.43,157.37,0.12502]
[1728951441417,18.43232229,157.43,157.37,0.12502]
[1728951441623,3.1772,157.4,157.37,0.12502]
[1728951441809,3.1772,157.4,157.37,3.30262]
[1728951442907,3.1775,157.38,157.37,0.12502]
[1728951443921,3.1774,157.39,157.37,0.12502]
[1728951444419,3.1775,157.38,157.37,0.12502]
[1728951445320,15.27,157.38,157.31,0.12502]
[1728951445520,15.27,157.36,157.31,0.12502]
[1728951445714,4.86,157.35,157.31,0.12502]
[1728951445910,15.27,157.34,157.31,0.12502]
[1728951446121,3.1787,157.32,157.31,0.12502]
[1728951460937,4.86,157.34,157.25,0.12502]
[1728951460938,3.1796,157.28,157.25,0.12502]
[1728951461639,3.1796,157.28,157.25,3.30512]
[1728951463234,3.1797,157.27,157.25,0.12502]
[1728951463429,4.86,157.3,157.25,0.12502]
[1728951464030,3.1797,157.27,157.25,0.12502]
[1728951466743,3.1797,157.27,157.25,3.30512]
[1728951467540,4.86,157.3,157.26,3.1797]
[1728951467541,3.1794,157.29,157.26,3.1797]
[1728951467741,4.86,157.32,157.26,15.27]
[1728951467941,4.86,157.32,157.26,16.6174]
[1728951468447,4.86,157.32,157.28,15.27]
[1728951468738,3.1788,157.32,157.29,3.1792]
[1728951468940,4.86,157.34,157.28,15.27]
[1728951469341,4.86,157.34,157.31,3.1788]
[1728951469839,4.86,157.34,157.28,15.27]
[1728951470037,3.1785,157.33,157.3,3.179]
[1728951472246,4.86,157.34,157.28,15.27]
[1728951472437,4.86,157.34,157.26,24.2054]
[1728951472837,3.1788,157.32,157.29,3.1791]
[1728951473339,3.1785,157.33,157.31,3.1788]
[1728951473647,3.1785,157.33,157.26,24.2054]
[1728951474136,3.1787,157.32,157.29,3.1791]
[1728951476940,3.179,157.31,157.26,24.2054]
[1728951477139,3.179,157.31,157.28,3.1793]
[1728951477335,4.86,157.34,157.28,3.1793]
[1728951477546,3.1792,157.3,157.28,3.1793]
[1728951480148,3.1789,157.31,157.28,3.1793]
[1728951481446,3.1789,157.31,157.28,12.9493]
[1728951481644,3.1787,157.32,157.3,9.77]
[1728951481843,4.86,157.35,157.3,9.77]
[1728951482142,3.1784,157.34,157.31,9.77]
[1728951482948,3.1784,157.34,157.31,12.9487]
[1728951483342,3.1784,157.34,157.31,9.77]
[1728951483544,3.1784,157.34,157.32,3.1786]
[1728951484139,3.178,157.36,157.33,9.77]
[1728951484349,3.178,157.36,157.34,3.1782]
[1728951484753,4.98502,157.37,157.34,3.1782]
[1728951484754,8.16272,157.37,157.35,9.77]
[1728951485847,4.98502,157.37,157.32,15.27]
[1728951486046,4.98502,157.37,157.35,3.1779]
[1728951486844,0.12502,157.37,157.35,3.1779]
[1728951487155,0.12502,157.37,157.36,3.1779]
[1728951488752,3.30282,157.37,157.34,3.1782]
[1728951489153,3.30282,157.37,157.33,6.1823]
[1728951489451,0.12502,157.37,157.33,6.1823]
[1728951490653,0.12502,157.37,157.36,3.1779]
[1728951494957,0.12502,157.37,157.33,7.5453]
[1728951495154,3.178,157.36,157.33,4.5006]
[1728951495353,0.12502,157.37,157.29,16.5413]
[1728951495354,4.98502,157.37,157.29,16.5413]
[1728951495555,20.25502,157.37,157.29,1.2713]
[1728951496064,15.27,157.35,157.26,2.5531]
[1728951496352,15.27,157.31,157.25,0.12502]
[1728951496560,4.86,157.3,157.25,0.12502]
[1728951496946,3.1798,157.27,157.25,0.12502]
[1728951497361,4.86,157.3,157.25,0.12502]
[1728951497362,3.1799,157.26,157.25,0.12502]
[1728951497662,8.0399,157.26,157.25,0.12502]
[1728951499261,3.1798,157.27,157.25,0.12502]
[1728951500057,4.86,157.29,157.25,0.12502]
[1728951500951,3.1795,157.28,157.25,0.12502]
[1728951501864,3.1795,157.28,157.25,3.30502]
[1728951502258,4.86,157.29,157.25,0.12502]
[1728951502751,3.1792,157.3,157.25,0.12502]
[1728951502954,4.86,157.32,157.25,0.12502]
[1728951503259,4.86,157.33,157.26,15.27]
[1728951503664,3.1789,157.31,157.28,3.1793]
[1728951504961,4.86,157.33,157.25,0.12502]
[1728951505168,15.27,157.32,157.25,0.12502]
[1728951505760,3.1794,157.29,157.26,3.1798]
[1728951506865,4.86,157.33,157.26,3.1798]
[1728951507469,3.1792,157.3,157.26,3.1798]
[1728951507863,4.86,157.33,157.26,3.1798]
[1728951508067,3.1793,157.29,157.26,3.1798]
[1728951508270,4.86,157.33,157.27,3.1796]
[1728951508663,4.86,157.33,157.25,15.39502]
[1728951509364,3.1792,157.3,157.27,3.1796]
[1728951510267,3.1788,157.32,157.27,3.1796]
[1728951510470,3.1788,157.32,157.25,15.39502]
[1728951510764,3.1788,157.32,157.27,15.27]
[1728951511069,0.12502,157.37,157.29,15.27]
[1728951511265,4.86,157.36,157.29,15.27]
[1728951511463,3.1783,157.34,157.31,3.1787]
[1728951511864,4.86,157.36,157.29,15.27]
[1728951512068,3.1782,157.35,157.31,3.1788]
[1728951512465,3.1782,157.35,157.29,15.27]
[1728951512668,3.1782,157.35,157.32,3.1786]
[1728951513166,4.86,157.36,157.32,3.1786]
[1728951513369,3.1783,157.34,157.31,3.1788]
[1728951514169,3.1783,157.34,157.32,3.1787]
[1728951515365,4.86,157.36,157.29,15.27]
[1728951515573,4.86,157.36,157.31,15.27]
[1728951516474,4.86,157.36,157.33,3.1783]
[1728951517376,8.038,157.36,157.33,3.1783]
[1728951518674,3.1783,157.34,157.31,18.4488]
[1728951518871,0.12502,157.37,157.31,15.27]
[1728951519061,0.12502,157.37,157.29,15.27]
[1728951519272,15.39502,157.37,157.28,2.6245]
[1728951519778,3.1782,157.35,157.3,3.179]
[1728951519965,4.86,157.34,157.3,3.179]
[1728951520473,3.1786,157.33,157.3,3.179]
[1728951521679,3.1786,157.33,157.28,2.6245]
[1728951522279,4.86,157.34,157.28,2.6245]
[1728951522280,4.86,157.34,157.31,3.1788]
[1728951522474,8.0383,157.34,157.31,3.1788]
[1728951523778,4.86,157.34,157.28,2.6245]
[1728951523979,4.86,157.34,157.29,15.27]
[1728951524977,8.0384,157.34,157.31,3.1788]
[1728951525976,3.1785,157.33,157.31,3.1788]
[1728951526176,4.86,157.36,157.29,15.27]
[1728951526377,4.86,157.36,157.34,3.1782]
[1728951526678,0.12502,157.37,157.34,3.1782]
[1728951526882,4.98502,157.37,157.34,3.1782]
[1728951527474,3.178,157.36,157.34,3.1782]
[1728951528984,4.98502,157.37,157.35,3.178]
[1728951528985,8.16272,157.37,157.35,3.178]
[1728951529190,4.98502,157.37,157.35,3.178]
[1728951529495,4.98502,157.37,157.35,3.1779]
[1728951529883,0.12502,157.37,157.31,15.27]
[1728951530084,0.12502,157.37,157.35,3.1779]
[1728951530379,0.12502,157.37,157.31,15.27]
[1728951530584,0.12502,157.37,157.36,3.1779]
[1728951534884,0.12502,157.37,157.35,3.1779]
[1728951535789,0.12502,157.37,157.36,3.1779]
[1728951538285,0.12502,157.37,157.34,2.6692]
[1728951538486,0.12502,157.37,157.34,1.2707]
[1728951539295,3.30282,157.37,157.35,3.1781]
[1728951540691,0.12502,157.37,157.35,3.1781]
[1728951542088,3.30272,157.37,157.34,1.2707]
[1728951542288,0.12502,157.37,157.34,1.2707]
[1728951542686,3.30272,157.37,157.34,1.2707]
[1728951542889,3.30272,157.37,157.34,3.1781]
[1728951543385,3.30272,157.37,157.35,3.178]
[1728951545192,3.1782,157.35,157.33,3.1784]
[1728951546498,9.89502,157.37,157.33,3.1784]
[1728951547101,3.1779,157.36,157.33,3.1784]
[1728951548300,3.1779,157.36,157.34,3.1782]
[1728951548491,0.12502,157.37,157.34,9.77]
[1728951549493,3.30282,157.37,157.34,12.9482]
[1728951549697,0.12502,157.37,157.34,12.9482]
[1728951550297,0.12502,157.37,157.35,3.1779]
[1728951550498,0.12502,157.37,157.36,9.77]
[1728951550895,0.12502,157.37,157.36,12.9479]
[1728951551297,0.12502,157.37,157.33,9.77]
[1728951551498,3.30272,157.37,157.34,3.1781]
[1728951551898,0.12502,157.37,157.33,9.77]
[1728951552099,0.12502,157.37,157.35,3.178]
[1728951553001,0.12502,157.37,157.35,12.948]
[1728951553209,0.12502,157.37,157.36,3.1779]
[1728951554508,0.12502,157.37,157.36,12.9479]
[1728951556708,0.12502,157.37,157.36,3.1779]
[1728951557104,0.12502,157.37,157.33,12.9483]
[1728951557302,3.178,157.36,157.33,3.1783]
[1728951557513,3.178,157.36,157.31,9.77]
[1728951557706,3.178,157.36,157.33,9.77]
[1728951558512,3.178,157.36,157.34,3.1781]
[1728951558712,0.12502,157.37,157.33,9.77]
[1728951559105,0.12502,157.37,157.34,3.1781]
[1728951559808,3.30272,157.37,157.34,3.1782]
[1728951560317,3.1781,157.35,157.33,9.77]
[1728951560606,0.12502,157.37,157.33,9.77]
[1728951561112,0.12502,157.37,157.33,12.9483]
[1728951561113,3.178,157.36,157.33,12.9483]
[1728951561608,3.178,157.36,157.34,3.1782]
[1728951563011,3.30282,157.37,157.34,3.1782]
[1728951563710,3.1779,157.36,157.34,3.1782]
[1728951567304,0.12502,157.37,157.35,9.77]
[1728951567711,0.12502,157.37,157.36,3.1779]
[1728951573119,0.12502,157.37,157.36,12.9479]
[1728951573517,9.77,157.42,157.36,12.9479]
[1728951573518,3.1767,157.42,157.36,9.77]
[1728951573825,0.12502,157.43,157.39,9.77]
[1728951576234,0.12502,157.43,157.41,3.1767]
[1728951577020,3.30152,157.43,157.41,3.1768]
[1728951578032,0.12502,157.43,157.41,3.1768]
[1728951578729,0.12502,157.43,157.42,3.1766]
[1728951578936,16.28911413,157.52,157.42,3.1766]
[1728951578937,14.75502,157.49,157.42,9.77]
[1728951579232,14.75502,157.49,157.44,9.77]
[1728951579427,3.1756,157.48,157.45,3.1759]
[1728951579932,9.89502,157.49,157.45,3.1759]
[1728951580133,3.1756,157.47,157.45,3.1759]
[1728951580332,9.89502,157.49,157.44,9.77]
[1728951580529,0.12502,157.49,157.48,3.1754]
[1728951580729,0.12502,157.49,157.45,9.77]
[1728951581122,0.12502,157.49,157.47,3.1756]
[1728951582030,0.12502,157.49,157.45,9.77]
[1728951582234,3.30032,157.49,157.46,3.1758]
[1728951583238,3.30032,157.49,157.43,2.6803]
[1728951583427,3.176,157.46,157.43,2.6803]
[1728951584033,9.77,157.47,157.43,2.6803]
[1728951584633,3.1761,157.45,157.43,2.6803]
[1728951584839,3.1761,157.45,157.43,1.376]
[1728951585337,12.9461,157.45,157.42,3.1766]
[1728951585535,3.1764,157.44,157.41,3.1768]
[1728951585843,9.77,157.45,157.39,12.4952]
[1728951586135,9.77,157.44,157.39,2.7252]
[1728951586534,3.1768,157.42,157.39,5.9024]
[1728951587436,9.77,157.44,157.39,1.3509]
[1728951588238,3.177,157.41,157.39,1.3509]
[1728951589142,3.1772,157.4,157.38,9.77]
[1728951590340,7.98121627,157.45,157.37,0.12502]
[1728951590341,3.1774,157.39,157.37,0.12502]
[1728951590836,3.1775,157.38,157.37,0.12502]
[1728951597542,3.1758,157.46,157.37,14.75502]
[1728951597843,0.12502,157.49,157.45,9.77]
[1728951598044,0.12502,157.49,157.47,9.77]
[1728951598841,0.12502,157.49,157.47,12.9454]
[1728951599046,0.12502,157.49,157.47,9.77]
[1728951599943,0.12502,157.49,157.48,3.1754]
[1728951600140,0.12502,157.49,157.45,4.0309]
[1728951600341,0.12502,157.49,157.45,18.6609]
[1728951601045,0.12502,157.49,157.46,3.1756]
[1728951603546,0.12502,157.49,157.47,3.1756]
[1728951605855,0.12502,157.49,157.45,8.8909]
[1728951606157,3.30042,157.49,157.45,10.6814]
[1728951607249,3.30042,157.49,157.45,5.8214]
[1728951607455,0.12502,157.49,157.45,5.8214]
[1728951607657,3.1754,157.48,157.45,5.8214]
[1728951607948,0.12502,157.49,157.43,15.24]
[1728951608155,3.1757,157.47,157.43,3.1763]
[1728951608350,15.36502,157.49,157.41,4.86]
[1728951608556,20.22502,157.49,157.41,4.86]
[1728951609248,20.22502,157.49,157.39,17.9004]
[1728951609454,20.22502,157.49,157.4,4.86]
[1728951609857,3.1758,157.47,157.43,3.1763]
[1728951610155,3.1758,157.47,157.4,4.86]
[1728951610556,3.1758,157.47,157.43,3.1764]
[1728951610855,0.12502,157.49,157.44,15.24]
[1728951611056,0.12502,157.49,157.46,3.1757]
[1728951612249,3.30042,157.49,157.45,3.1759]
[1728951613462,0.12502,157.49,157.41,15.24]
[1728951613959,0.12502,157.49,157.41,20.1]
[1728951614165,3.1758,157.47,157.43,3.1763]
[1728951615559,3.1759,157.46,157.43,3.1763]
[1728951616855,4.86,157.48,157.39,17.9004]
[1728951617356,3.1765,157.43,157.4,3.177]
[1728951620063,4.86,157.48,157.39,17.9004]
[1728951620262,3.1763,157.44,157.41,3.1768]
[1728951620463,3.1203418,157.45,157.39,1.3911]
[1728951620668,3.1768,157.42,157.39,1.3911]
[1728951620864,3.25063411,157.45,157.39,1.3911]
[1728951621065,15.24,157.47,157.39,1.3911]
[1728951621264,3.177,157.41,157.39,1.3911]
[1728951621465,3.177,157.41,157.38,3.1773]
[1728951621670,3.177,157.41,157.39,3.1772]
[1728951622262,3.177,157.41,157.37,15.36502]
[1728951622561,3.177,157.41,157.38,3.1774]
[1728951626169,15.24,157.42,157.37,0.12502]
[1728951626468,3.1775,157.38,157.37,0.12502]
[1728951626669,15.24,157.42,157.37,0.12502]
[1728951626670,4.86,157.4,157.37,0.12502]
[1728951627465,3.1775,157.38,157.37,0.12502]
[1728951629366,4.86,157.4,157.37,0.12502]
[1728951630975,4.86,157.43,157.37,0.12502]
[1728951631467,7.99043334,157.43,157.37,0.12502]
[1728951631668,3.12471101,157.44,157.37,15.36502]
[1728951631867,4.86,157.44,157.37,15.36502]
[1728951632369,4.86,157.47,157.39,15.24]
[1728951632575,4.86,157.47,157.4,1.2599]
[1728951632772,3.1761,157.45,157.42,3.1765]
[1728951635673,4.86,157.48,157.41,15.24]
[1728951635875,4.86,157.48,157.41,16.573]
[1728951636070,3.1757,157.47,157.44,3.1761]
[1728951640079,4.98502,157.49,157.41,17.9039]
[1728951640677,8.16042,157.49,157.46,3.1757]
[1728951643171,4.98502,157.49,157.41,17.9039]
[1728951643380,3.1755,157.48,157.45,3.176]
[1728951645792,8.16032,157.49,157.43,3.1764]
[1728951646084,8.16032,157.49,157.41,17.9039]
[1728951646590,8.16032,157.49,157.45,3.1759]
[1728951646788,3.1755,157.48,157.45,3.1759]
[1728951649883,3.1755,157.48,157.45,12.9359]
[1728951650888,3.30032,157.49,157.45,9.76]
[1728951651890,3.30032,157.49,157.46,3.1757]
[1728951653785,0.12502,157.49,157.45,9.76]
[1728951653991,9.88502,157.49,157.43,14.62]
[1728951654697,3.1756,157.47,157.45,3.176]
[1728951654997,9.88502,157.49,157.43,9.76]
[1728951655192,3.1762,157.45,157.42,4.86]
[1728951655598,3.1762,157.45,157.43,3.1763]
[1728951656100,3.1759,157.46,157.43,3.1763]
[1728951656597,3.1759,157.46,157.44,3.1762]
[1728951658995,3.1764,157.44,157.41,3.1768]
[1728951659298,3.1764,157.44,157.4,11.0199]
[1728951659494,3.1764,157.44,157.42,3.1765]
[1728951659697,9.76,157.46,157.4,11.0199]
[1728951659698,9.76,157.46,157.41,9.76]
[1728951659894,3.176,157.45,157.41,9.76]
[1728951660096,14.62,157.48,157.43,9.76]
[1728951660297,14.62,157.48,157.43,12.9363]
[1728951660499,3.176,157.45,157.43,12.9363]
[1728951660897,14.62,157.48,157.4,1.2599]
[1728951661098,3.1766,157.43,157.4,1.2599]
[1728951661290,9.76,157.43,157.38,9.76]
[1728951661490,9.76,157.42,157.38,3.1774]
[1728951661793,9.76,157.43,157.38,9.76]
[1728951661993,4.84,157.44,157.4,3.1769]
[1728951662202,12.95366071,157.46,157.41,9.76]
[1728951662403,3.19366071,157.46,157.44,9.76]
[1728951662801,6.36966071,157.46,157.44,9.76]
[1728951662995,3.176,157.46,157.42,9.76]
[1728951663399,3.176,157.46,157.43,3.1762]
[1728951663606,3.176,157.46,157.42,9.76]
[1728951664498,9.76,157.48,157.42,9.76]
[1728951664703,9.76,157.48,157.41,1.3612]
[1728951664704,3.1755,157.48,157.44,9.76]
[1728951665899,3.1755,157.48,157.44,12.9361]
[1728951665900,3.1758,157.47,157.44,12.9361]
[1728951666701,9.76,157.48,157.44,3.1761]
[1728951666903,3.1759,157.46,157.44,3.1761]
[1728951668704,0.12502,157.49,157.47,3.1756]
[1728951668904,0.12502,157.49,157.47,12.9356]
[1728951669910,0.12502,157.49,157.47,3.1756]
[1728951671303,3.1757,157.47,157.45,3.176]
[1728951671502,0.12502,157.49,157.42,4.84]
[1728951671909,3.1757,157.47,157.43,3.1763]
[1728951672504,3.1757,157.47,157.44,3.1762]
[1728951672911,3.1758,157.46,157.44,3.1762]
[1728951673917,3.1757,157.47,157.44,3.1762]
[1728951674917,4.96502,157.49,157.42,4.84]
[1728951675120,3.1759,157.46,157.43,3.1763]
[1728951675817,4.96502,157.49,157.42,4.84]
[1728951676019,3.1758,157.46,157.44,3.1761]
[1728951676222,4.96502,157.49,157.44,3.1761]
[1728951676723,3.1755,157.48,157.44,3.1761]
[1728951676921,3.1755,157.48,157.43,3.1764]
[1728951678123,3.1755,157.48,157.41,1.3612]
[1728951678422,3.1755,157.48,157.44,3.1762]
[1728951679626,3.1755,157.48,157.41,1.3612]
[1728951679627,4.96502,157.49,157.41,1.3612]
[1728951679827,8.14032,157.49,157.41,1.3612]
[1728951680320,3.1755,157.48,157.44,3.1761]
[1728951681329,3.1755,157.48,157.41,1.3612]
[1728951681521,3.1755,157.48,157.45,3.176]
[1728951681721,4.96502,157.49,157.45,3.176]
[1728951681926,4.96502,157.49,157.46,3.1758]
[1728951682926,3.1755,157.48,157.41,1.3612]
[1728951683226,4.96502,157.49,157.41,1.3612]
[1728951683625,8.14042,157.49,157.45,3.1759]
[1728951684432,8.14042,157.49,157.46,3.1758]
[1728951685128,0.12502,157.49,157.41,1.3612]
[1728951685924,0.12502,157.49,157.48,3.1754]
[1728951698243,0.12502,157.49,157.48,14.2045]
[1728951699539,0.12502,157.49,157.48,4.4545]
[1728951699744,0.12502,157.49,157.48,3.1754]
[1728951703031,0.12502,157.49,157.47,3.1755]
[1728951704746,0.12502,157.49,157.45,17.1866]
[1728951705045,0.12502,157.49,157.48,3.1754]
[1728951705251,0.12502,157.49,157.48,12.9254]
[1728951705741,0.12502,157.49,157.48,3.1754]
[1728951705946,0.12502,157.49,157.48,12.9254]
[1728951706642,0.12518,157.51,157.5,12.925]
[1728951713245,0.12502,157.55,157.5,9.75]
[1728951713445,0.12502,157.55,157.54,3.1742]
[1728951713955,0.12502,157.55,157.54,12.9242]
[1728951714645,0.12502,157.61,157.54,9.75]
[1728951714844,0.12502,157.61,157.59,3.1732]
[1728951715153,0.12502,157.61,157.57,9.75]
[1728951715349,0.12502,157.61,157.59,3.1732]
[1728951717161,9.87502,157.61,157.53,4.84]
[1728951717355,9.87502,157.61,157.55,9.75]
[1728951717761,3.1737,157.57,157.52,6.1328]
[1728951717958,3.1737,157.57,157.52,15.8828]
[1728951718360,3.1737,157.57,157.54,3.1741]
[1728951719454,3.2310099,157.6,157.57,3.1735]
[1728951719455,9.75,157.59,157.57,3.1735]
[1728951719660,9.75,157.59,157.54,9.75]
[1728951720060,3.1733,157.59,157.55,9.75]
[1728951720564,9.75,157.59,157.53,14.59]
[1728951721164,3.1735,157.58,157.56,3.1738]
[1728951721363,9.87502,157.61,157.55,9.75]
[1728951721867,3.1733,157.59,157.55,9.75]
[1728951722270,3.1735,157.58,157.54,3.1741]
[1728951722462,3.1735,157.58,157.53,14.59]
[1728951722970,3.1735,157.58,157.55,3.1739]
[1728951723469,3.1735,157.58,157.53,14.59]
[1728951723671,9.87502,157.61,157.57,3.1735]
[1728951724074,9.87502,157.61,157.53,4.84]
[1728951724268,3.24932496,157.6,157.54,9.75]
[1728951724965,3.1735,157.58,157.55,3.1739]
[1728951725575,0.12502,157.61,157.56,9.75]
[1728951725776,0.12502,157.61,157.57,9.75]
[1728951726471,3.1731,157.6,157.56,9.75]
[1728951727072,3.1731,157.6,157.57,3.1735]
[1728951727474,13.04792,157.61,157.56,9.75]
[1728951727669,13.04792,157.61,157.58,3.1733]
[1728951728078,13.04792,157.61,157.56,9.75]
[1728951728379,13.04792,157.61,157.58,3.1733]
[1728951728582,3.173,157.6,157.58,3.1733]
[1728951728977,0.12502,157.61,157.57,9.75]
[1728951730478,0.12502,157.61,157.58,3.1734]
[1728951730680,0.12502,157.61,157.58,9.75]
[1728951731081,0.12502,157.61,157.6,12.923]
[1728951731982,0.12502,157.61,157.6,3.173]
[1728951733178,0.12502,157.61,157.6,12.923]
[1728951734284,0.12502,157.61,157.6,3.173]
[1728951737485,9.87502,157.67,157.64,3.1722]
[1728951737486,3.1718,157.66,157.64,3.1722]
[1728951737882,0.12502,157.67,157.64,3.1722]